Cogmind - Beta 16 @@@ ROGUE MODE // 2025.10.31 @ 06:01:00 Player: beans Result: Destroyed by Y-45 Defender with Beam Rifle Performance ------------- Evolutions (2) 1000 Regions Visited (4) 800 Robots Destroyed (55) 275 Value Destroyed (1380) 1380 Prototype IDs (3) 60 Alien Tech Used (0) 0 Bonus (0) 0 TOTAL SCORE: 3515 Bonus ------- None Cogmind --------- Core Integrity 0/550 Matter 241/300 Energy 99/100 System Corruption 0% Temperature Cool (18) Movement Core (100) Ox1 Location -8/Storage Parts ------- > --- POWER (1) -------- (None) > --- PROPULSION (2) --- (None) > --- UTILITY (5) ------ Advanced Visual Processing Unit Improved Signal Interpreter Graphene Brace System Shield System Shield > --- WEAPON (3) ------- Heavy Assault Rifle > --- INVENTORY (5) ---- Small Laser Particle Gun Peak State ------------ > --- POWER ------------ (None) > --- PROPULSION ------- Cesium-ion Thruster > --- UTILITY ---------- Advanced Visual Processing Unit Improved Signal Interpreter Graphene Brace System Shield System Shield > --- WEAPON ----------- Heavy Assault Rifle > --- INVENTORY -------- Small Laser Particle Gun [Rating: 24] Favorites ----------- Power Cooled Ion Engine Engine Cooled Ion Engine Propulsion Light Treads Treads Light Treads Flight Unit Cesium-ion Thruster Utility Huge Storage Unit Device Heat Sink Storage Huge Storage Unit Processor Visual Processing Unit Hackware System Shield Protection Improved Light Armor Plating Weapon Improved Assault Rifle Energy Gun Small Laser Ballistic Gun Improved Assault Rifle Ballistic Cannon Assault Cannon Build | -11 -10 -9 -8 -8 ------- Run | Yrd Mat Mat Mat Sto Slots Evolved 4 | . . 2 2 . Power . | . . . . . Propulsion . | . . . . . Utility 3 | . . 2 1 . Weapon 1 | . . . 1 . Parts Attached 32 | 4 2 16 7 3 Power 3 | . . 3 . . Engine 3 | . . 3 . . Core . | . . . . . Reactor . | . . . . . Propulsion 7 | 2 . 3 2 . Treads 6 | 2 . 3 1 . Leg . | . . . . . Wheel . | . . . . . Hover . | . . . . . Flight 1 | . . . 1 . Utility 10 | . . 4 4 2 Device 3 | . . 1 2 . Storage 1 | . . 1 . . Processor 3 | . . 1 2 . Hackware 2 | . . . . 2 Protection 1 | . . 1 . . Artifact . | . . . . . Weapon 12 | 2 2 6 1 1 Energy Gun 3 | 2 . 1 . . Energy Cannon . | . . . . . Ballistic Gun 8 | . 2 5 . 1 Ballistic Cannon 1 | . . . 1 . Launcher . | . . . . . Special Weapon . | . . . . . Impact Weapon . | . . . . . Slashing Weapon . | . . . . . Piercing Weapon . | . . . . . Special Melee Weapon . | . . . . . Unidentified Prototypes 3 | . . 3 . . Parts Lost 19 | . 1 9 8 1 Power 1 | . . . 1 . Propulsion 7 | . . 3 3 1 Utility 3 | . . 2 1 . Weapon 8 | . 1 4 3 . Highest Loss Streak 8 | . 1 6 8 1 To Critical Strikes . | . . . . . Average Backups 6 | 1 2 7 7 4 Power . | . . . . . Propulsion 1 | . . 1 1 . Utility 2 | . . 2 3 1 Weapon 2 | 1 1 2 2 2 Tool/Special . | . . . . . Unused Backups 3 | . . . 2 1 Power . | . . . . . Propulsion . | . . . . . Utility 2 | . . . 2 . Weapon 1 | . . . . 1 Tool/Special . | . . . . . Average Slot Usage (%) 65 | . 56 69 60 43 Engine 8 | . . 10 7 . Treads 19 | . 28 20 14 . Device 3 | . . 4 1 9 Storage 6 | . . 8 7 . Processor 3 | . . 2 9 18 Protection 1 | . . 1 . . Energy Gun 3 | . 11 3 . . Ballistic Gun 17 | . 15 18 16 1 Peak Build Rating 24 | 4 4 17 20 24 Average Rating 11 | 3 3 12 14 19 On Entrance 7 | . 4 3 15 17 Avg Prop Armor Cover (%) . | . . . . . Naked Turns . | . . . . . Heaviest Build 100 | 2 4 98 100 1 Greatest Support 40 | 40 40 40 40 5 Greatest Overweight (x) 30 | . . 30 2 . Average Overweight (x) . | . . 1 . . Largest Inventory Capacity 25 | 5 5 25 25 5 Average Capacity 17 | 5 5 20 21 5 Most Carried 10 | 3 5 10 9 5 Average Carried 6 | . 2 7 7 3 Final Capacity 25 | 5 5 25 5 5 Final Carried 8 | 1 5 8 5 2 Class Distribution -------------------- 91% | Mutant 8% | Skirmisher Dominant Class ---------------- Mutant | -10/Materials Mutant | -9/Materials Skirmisher | -8/Materials Mutant | -8/Storage Resources | -11 -10 -9 -8 -8 ----------- Run | Yrd Mat Mat Mat Sto Matter Collected 1208 | 227 141 584 256 . Remotely . | . . . . . Salvage Created 2341 | . 328 1714 299 . Parts 122 | . 21 89 12 . Haulers Intercepted 7 | . 1 5 1 . Recyclers Shooed 8 | . 1 6 1 . Parts Field Recycled . | . . . . . Retrieved Matter . | . . . . . Parts Self-Destructed . | . . . . . Prevented . | . . . . . Parts Restored . | . . . . . Kills | -11 -10 -9 -8 -8 ------- Run | Yrd Mat Mat Mat Sto Combat Hostiles Destroyed 35 | . 7 24 4 . Guns 32 | . 7 23 2 . Cannons 2 | . . . 2 . AOE 1 | . . 1 . . Classes Destroyed 8 | . 2 6 . . Worker 2 | . . 1 1 . Tunneler 1 | . . 1 . . Hauler 7 | . 1 5 1 . Recycler 7 | . . 7 . . Watcher 3 | . . 3 . . Swarmer 4 | . . 4 . . Grunt 25 | . 7 16 2 . Sentry 6 | . . 4 2 . Best Kill Streak 5 | . 3 5 2 . Combat Bots Only 4 | . 3 4 1 . Max Kills in Single Turn 3 | . 1 3 1 . Gunslinging 1 | . . 1 . . Exploded 1 | . . 1 . . Melee . | . . . . . Uniques/NPCs Destroyed . | . . . . . Combat | -11 -10 -9 -8 -8 -------- Run | Yrd Mat Mat Mat Sto Hostile Shots Fired 361 | . 51 171 120 19 Missed 102 | . 20 42 35 5 Hits 259 | . 31 129 85 14 Projectile 259 | . 31 129 85 14 Critical Strikes 12 | . 1 5 6 . Damage Taken 3624 | . 404 1658 1348 214 Core 984 | . 97 337 457 93 Absorbed by Shields . | . . . . . Core Remaining (%) 58 | 100 61 15 . . Volleys Fired 158 | . 26 101 23 8 Largest 3 | . 2 2 3 1 Hottest 83 | . 40 80 83 23 Shots Fired 307 | . 48 191 60 8 Gun 286 | . 48 191 39 8 Cannon 21 | . . . 21 . Launcher . | . . . . . Special . | . . . . . Kinetic 257 | . 48 141 60 8 Thermal 50 | . . 50 . . Explosive . | . . . . . Electromagnetic . | . . . . . Robot Hit Streak 21 | . 9 21 10 8 Robot Miss Streak 4 | . 2 4 2 . Penetration Max . | . . . . . Secondary Targets 5 | . 1 4 . . Max Gunslinging Chain 1 | . 1 1 . . Shots Hit Robots 223 | . 31 142 42 8 Core Hits 92 | . 15 66 10 1 Critical Kills . | . . . . . Critical Parts Destroyed 1 | . . 1 . . Critical Strikes 1 | . . 1 . . Destroy 1 | . . 1 . . Melee Attacks . | . . . . . Impact . | . . . . . Slashing . | . . . . . Piercing . | . . . . . Sneak Attacks . | . . . . . Combat Hostiles . | . . . . . Follow-up Attacks . | . . . . . Damage Inflicted 3210 | . 406 1909 775 120 Guns 2912 | . 406 1909 477 120 Cannons 298 | . . . 298 . Explosions . | . . . . . Melee . | . . . . . Ramming . | . . . . . Kinetic 2775 | . 406 1474 775 120 Thermal 435 | . . 435 . . Explosive . | . . . . . Electromagnetic . | . . . . . Impact . | . . . . . Slashing . | . . . . . Piercing . | . . . . . Highest Corruption . | . . . . . Average Corruption . | . . . . . Corruption Purged . | . . . . . Corruption Blocked . | . . . . . Overload Shots . | . . . . . Overflow Damage 12 | . . . 12 . Projectiles 12 | . . . 12 . Explosions . | . . . . . Melee . | . . . . . Knockbacks 2 | . . . 2 . Impact . | . . . . . Kinetic 2 | . . . 2 . Secondary . | . . . . . Self-Inflicted Damage . | . . . . . Shots . | . . . . . Rammed . | . . . . . Targets Rammed . | . . . . . Kicked . | . . . . . Crushed . | . . . . . Highest Temperature 142 | . 15 142 134 . Average Temperature 66 | . 10 59 85 . Received Heat Transfer 1731 | . 219 711 720 81 Siege Activations . | . . . . . Martial Activations . | . . . . . Shielding Activations . | . . . . . Robots Disrupted . | . . . . . Combat Hostiles . | . . . . . Robots Corrupted . | . . . . . Combat Hostiles . | . . . . . Parts Fried . | . . . . . Impact Corruptions . | . . . . . Robots Melted . | . . . . . Combat Hostiles . | . . . . . Parts Melted 2 | . . 2 . . Heat Transferred 975 | . . 975 . . Parts Sabotaged . | . . . . . Parts Stolen . | . . . . . Parts Stripped . | . . . . . Power Chain Reactions . | . . . . . Alert | -11 -10 -9 -8 -8 ------- Run | Yrd Mat Mat Mat Sto Maximum Alert Level 1 | . . 1 . . Low Security (%) 92 | 100 100 88 100 100 Level 1 7 | . . 11 . . Level 2 . | . . . . . Level 3 . | . . . . . Level 4 . | . . . . . Level 5 . | . . . . . High Security . | . . . . . Max Security . | . . . . . Peak Influence 229 | . 122 229 80 30 Initial 48 | . . 38 48 25 Average 85 | . 61 111 22 21 Influence Increases 1123 | . 222 672 214 15 Destroy 0b10 Robot/C 700 | . 140 480 80 . Destroy 0b10 Robot/NC 100 | . 5 85 10 . Destroy Leader 170 | . 32 106 32 . Destroy Structure 3 | . . 1 2 . Partial Spotted 30 | . . . 15 15 Lose Combat Pursuer 120 | . 45 . 75 . Influence Decreases 1113 | . 130 649 269 65 Entered New Map 156 | . . 54 67 35 Time Decay 788 | . 120 505 143 20 Lost Part 169 | . 10 90 59 10 Squads Dispatched 7 | . 1 . 4 2 Investigation . | . . . . . Extermination . | . . . . . Reinforcement 4 | . 1 . 1 2 Assault . | . . . . . Garrison 3 | . . . 3 . Intercept . | . . . . . Searches Triggered . | . . . . . Construction Impeded . | . . . . . Haulers Reinforced . | . . . . . Active Scanning Responses . | . . . . . Cargo Convoy Interrupts . | . . . . . Stealth | -11 -10 -9 -8 -8 --------- Run | Yrd Mat Mat Mat Sto Distress Signals 5 | . 1 2 2 . Communications Jammed . | . . . . . Distress Signals . | . . . . . Times Spotted 70 | . 12 38 14 6 Peak Tracking Total 8 | . 3 4 8 6 Tactical Retreats 4 | . 2 . 2 . Traps | -11 -10 -9 -8 -8 ------- Run | Yrd Mat Mat Mat Sto Traps Triggered 2 | . 2 . . . Indirectly . | . . . . . Trap Hack Attempts . | . . . . . Triggered . | . . . . . Disarmed . | . . . . . Reprogrammed . | . . . . . Reused . | . . . . . Traps Extracted . | . . . . . Installed . | . . . . . Triggered . | . . . . . Machines | -11 -10 -9 -8 -8 ---------- Run | Yrd Mat Mat Mat Sto Machines Disabled . | . . . . . Max in Single Turn . | . . . . . Machines Repaired . | . . . . . Machines Dismantled . | . . . . . Machines Sabotaged . | . . . . . Overloaded Fab Kills . | . . . . . Hacking | -11 -10 -9 -8 -8 --------- Run | Yrd Mat Mat Mat Sto Machines Accessed 1 | . . . . 1 Terminals 1 | . . . . 1 Fabricators . | . . . . . Repair Stations . | . . . . . Recycling Units . | . . . . . Scanalyzers . | . . . . . Garrison Access . | . . . . . Total Hacks 1 | . . . . 1 Successful 1 | . . . . 1 Failed . | . . . . . Catastrophic . | . . . . . Database Lockouts . | . . . . . Manual . | . . . . . Terminals 1 | . . . . 1 Fabricators . | . . . . . Repair Stations . | . . . . . Recycling Units . | . . . . . Scanalyzers . | . . . . . Garrison Access . | . . . . . Terminal Hacks 1 | . . . . 1 Open Door 1 | . . . . 1 Fabricator Hacks . | . . . . . Repair Station Hacks . | . . . . . Recycling Unit Hacks . | . . . . . Scanalyzer . | . . . . . Garrison Access Hacks . | . . . . . Unauthorized Hacks . | . . . . . Terminals . | . . . . . Fabricators . | . . . . . Repair Stations . | . . . . . Recycling Units . | . . . . . Scanalyzers . | . . . . . Garrison Access . | . . . . . Data Cores Recovered . | . . . . . Used . | . . . . . Hacking Detections . | . . . . . Full Trace Events . | . . . . . Feedback Events . | . . . . . Feedback Blocked . | . . . . . Robot Schematics Acquired . | . . . . . Robots Built . | . . . . . Authchips . | . . . . . Time . | . . . . . Total Robot Build Rating . | . . . . . Part Schematics Acquired . | . . . . . Parts Built . | . . . . . Authchips . | . . . . . Time . | . . . . . Total Part Build Rating . | . . . . . Part Studies Acquired . | . . . . . Parts Repaired . | . . . . . Time . | . . . . . Parts Recycled . | . . . . . Recycled Matter . | . . . . . Retrieved Matter . | . . . . . Retrieved Components . | . . . . . Parts Scanalyzed . | . . . . . Part Schematics Acquired . | . . . . . Parts Damaged . | . . . . . Bothacking | -11 -10 -9 -8 -8 ------------ Run | Yrd Mat Mat Mat Sto Used RIF Installer . | . . . . . Robots Hacked . | . . . . . Non-combat . | . . . . . Combat . | . . . . . Robot Hacks Applied . | . . . . . Relay Couplers Released . | . . . . . Fabnet Peak Effective % . | . . . . . Robots Rewired . | . . . . . Allies Hacked . | . . . . . Hacks Repelled . | . . . . . Allies | -11 -10 -9 -8 -8 -------- Run | Yrd Mat Mat Mat Sto Total Allies . | . . . . . Largest Group . | . . . . . Highest-Rated Group . | . . . . . Highest-Rated Ally . | . . . . . Total Orders . | . . . . . Ally Attacks . | . . . . . Total Damage . | . . . . . Kills . | . . . . . Allies Corrupted . | . . . . . Allies Melted . | . . . . . Intel | -11 -10 -9 -8 -8 ------- Run | Yrd Mat Mat Mat Sto Active Infowar (turns) 751 | . . 317 381 53 Optics 751 | . . 317 381 53 Robot Analysis Total . | . . . . . Derelict Logs Recovered . | . . . . . Drone Launches . | . . . . . Drone Recoveries . | . . . . . Exploration | -11 -10 -9 -8 -8 ------------- Run | Yrd Mat Mat Mat Sto Turns Passed 2438 | 57 357 1588 383 53 Spaces Moved 995 | 39 172 442 241 101 Core 15 | 12 . 1 2 . Treads 716 | 27 172 441 76 . Legs . | . . . . . Wheels . | . . . . . Hover . | . . . . . Flight 264 | . . . 163 101 Fastest Speed 35 | 50 160 160 35 35 Average Speed 187 | 126 160 273 121 35 Slowest Speed 1550 | 160 160 1550 320 35 Overloaded Moves . | . . . . . Propulsion Burnouts . | . . . . . Robots Hopped 1 | . . . 1 . Potential Cave-ins . | . . . . . Cave-ins Triggered . | . . . . . Exploration Rate (%) 33 | 5 36 53 34 37 Regions Visited 4 Branch Regions 1 Pre-discovered Areas . | . . . . . Known Exits Taken 1 | . . . 1 . Unknown Exits Taken 3 | 1 1 1 . . Scrap Searched . | . . . . . Spaces Dug . | . . . . . Terrain Destroyed 2 | . . . 2 . Melee . | . . . . . Projectile 2 | . . . 2 . AOE . | . . . . . Terrain Rammed . | . . . . . Walls Destroyed . | . . . . . Machines Disabled . | . . . . . Actions | -11 -10 -9 -8 -8 --------- Run | Yrd Mat Mat Mat Sto Total 1276 | 47 205 631 281 112 Wait 53 | . . 52 1 . Move 989 | 38 171 441 238 101 Hop 1 | . . . 1 . Pick Up 28 | 5 5 13 5 . Fast Attach 8 | . . 6 2 . Attach 24 | 4 1 10 6 3 Detach . | . . . . . Swap 7 | . 2 5 . . Drop 8 | . . 3 5 . Fire 158 | . 26 101 23 8 Melee . | . . . . . Ram . | . . . . . Kick . | . . . . . Crush . | . . . . . Escape Stasis . | . . . . . Rewire . | . . . . . Trap . | . . . . . Miscellaneous . | . . . . . Route ------- -11/Scrapyard -10/Materials (discovered 2 exits: [*Mat x2]) -9/Materials (discovered 3 exits: [*Mat] / [*Min x2]) -8/Materials -8/Storage History --------- Turn | Location | Event 2 | -11/Scrapyard | Discovered new exit (range 16) 58 | -11/Scrapyard | Entered Materials 175 | -10/Materials | Discovered new exit (range 12) 313 | -10/Materials | Build established: Mutant 379 | -10/Materials | Discovered new exit (range 15) 415 | -10/Materials | Entered another Materials area 415 | -9/Materials | Evolved 2 slots: Utility x2 686 | -9/Materials | Discovered new exit (range 16) 760 | -9/Materials | Discovered new exit (range 14) 1120 | -9/Materials | Core integrity fell below 50% 1136 | -9/Materials | Lost 6 parts (2n2u2w) 1340 | -9/Materials | Core integrity fell below 20% 1731 | -9/Materials | Discovered new exit (range 18) 2003 | -9/Materials | Entered another Materials area 2003 | -8/Materials | Evolved 2 slots: Utility x1, Weapon x1 2319 | -8/Materials | Core integrity fell below 50% 2354 | -8/Materials | Lost 8 parts (1p3n1u3w) 2362 | -8/Materials | Core integrity fell below 20% 2362 | -8/Materials | Discovered new exit (range 20) 2385 | -8/Materials | Identified exit to Storage 2386 | -8/Materials | Entered Storage 2439 | -8/Storage | Destroyed by Y-45 Defender with Beam Rifle Last Messages --------------- EXIT=FOUND Acquired Hvy. Assault Rifle. Acquired Graphene Brace. [Achievement: I Laugh At Your Crits] Acquired 10 matter. Acquired Imp. Signal Interpreter. EXIT=IDENTIFIED: STORAGE LOCATION=STORAGE GOAL=ESCAPE K-01 Serf collects debris. O-16 Technician: "IFF HANDSHAKE FAILED. SECURING TERMINAL." ALERT: Hostiles spotted, dispatching reinforcements to Terminal S010. Connecting with Door Terminal... >>Open(Door) Sealed Heavy Doors opened. ALERT: Hostiles spotted, dispatching reinforcements to Terminal S004. Cesium-ion Thruster destroyed. Map ----- +----------------------------------------------------+ | ??????????????????????????????????? | | ??????????????????????????????????? | | ??????????????????????????????????? | | ??????????????????????????????????? | | ??????????????????????????????????? | | ??????????????????????????????????? | | ??????????????????????????????????? | | ??????????????????????????????????? | | ??????????????????????????????????? | | ??????????????????????????????????? | | ??????????????????????????????????? | | ????????????????#####?????????????? | | ???????????????## #####?????????? | | ???????????????#T + #?????????? | | ???????????????##" ## #?????????? | | ????????????????#!!## #?????????? | | ????????????????#!!## #?????????? | | ????????????????#!!## #?????????? | | ????????????????##### #????##???? | | ????????????????????# ##### ##??# | | ????????????????????# # # | | ????????????????????# # """"" # | | ????????????????????# # """"" # | | ????????????????????# g#Y""""" # | | ??????????????????### g # | | ?????????????######T# #@ # | | ?????????????#!!!!# # # ! # | | ?????????????# + # # | | ?????????????#!!!!# # ##########? | | ?????????????######## #?????????? | | ????????????????????# #?????????? | | ????????#######?????# #?????????? | | ######### ####### #?????????? | | #?????????? | | T +?????????? | | #?????????? | | ######### #####+##+##?????????? | | ????????#######??? #??????????? | | ?????????????????? """ #??????????? | | ????????????????? "T" #??????????? | | ????????????????? #??????????? | | ???????????????? ??????????? | | ????????????????""" #??????????? | | ??????????????? """ #??????????? | | ??????????????? """ #??????????? | | ??????????????# #??????????? | | ??????????????##########??????????? | | ??????????????????????????????????? | | ??????????????????????????????????? | | ??????????????????????????????????? | +----------------------------------------------------+ Best States ------------- Heat Dissipation 41 Energy Generation 14 Energy Capacity 280 Matter Stores 300 Matter Capacity 300 Sight Range 20 Terrain Scan Density 10 Armor Coverage 150 Evasion (%) 63 Recoil Reduction 2 Defensive Hacking 20 Item Schematics ----------------- None Robot Schematics ------------------ None Fabricated ------------ Nothing Repaired ---------- Nothing Studied --------- None Alien Tech Used ----------------- None Achievements -------------- I Laugh At Your Crits Challenges ------------ None Game ------ Seed FieldthrustSapperInterface Manual? 0 Play Time 00:13:31 Cumulative 200.7 hours Start 2025.10.29 @ 19:13:53 End 2025.10.31 @ 06:01:00 Sessions 3 Manual Loads 0 Difficulty Rogue Special Mode None Game No. 587 Rogue 586 Adventurer 1 Explorer 0 Win Type - Total 0 Types 0/0/0/0/0/0/0/0/0/0 Lore% 64 Gallery% 60 Achievement% 34 Wizard Run 0 Options --------- Layout 1 ASCII 0 Keyboard 0 Movement Mouse Keybinds 0 Fullscreen 1 Font 24/Smallcaps Map View 50x35 Zoom Use 0% Tactical HUD 0 Map Filters NONE Filters NONE Steam 1 RUN: a7334ac0-7c89-4517-ae46-e1418cc4645e